[Event "Delancey UK Schools 2019 U18"]
[Site "Daventry"]
[Date "2019.09.24"]
[Round "3.1"]
[White "Klingher, Dominic"]
[Black "Kalavannan, Koby"]
[Result "1-0"]
[ECO "B26"]
[WhiteElo "2071"]
[BlackElo "2324"]
[Annotator "ChessBase"]
[PlyCount "65"]
[EventDate "2019.09.24"]
[EventCountry "GBR"]
[SourceTitle "playchess.com"]
[Source "ChessBase"]
[SourceQuality "1"]
[TimeControl "40/5400+30:1800+30"]

1. e4 {[%emt 1:10:12]} c5 {[%emt 1:10:11]} 2. Nc3 {[%emt 0:00:22]} Nc6 {[%emt 0:00:21]} 3. g3 {[%emt 0:00:24]} g6 {[%emt 0:00:21]} 4. d3 {[%emt 0:00:22]} Bg7 {[%emt 0:00:22]} 5. Bg2 {[%emt 0:00:22]} d6 {[%emt 0:00:22]} 6. Nge2 {[%emt 0:00:22]} Rb8 {[%emt 0:00:22]} 7. Be3 {[%emt 0:00:46]} b5 {[%emt 0:00:21]} 8. Qd2 {[%emt 0:00:27]} Nd4 {[%emt 0:00:29]} 9. h3 {[%emt 0:01:02]} h5 {[%emt 0:04:27]} 10. Nd1 {[%emt 0:01:02]} h4 {[%emt 0:03:14]} 11. g4 {[%emt 0:00:51]} e5 {[%emt 0:01:58]} 12. c3 {[%emt 0:01:35]} Nxe2 {[%emt 0:00:40]} 13. Qxe2 {[%emt 0:00:23]} Ne7 {[%emt 0:00:27]} 14. f4 {[%emt 0:01:07]} Nc6 {[%emt 0:01:16]} 15. O-O {[%emt 0:01:14]} exf4 {[%emt 0:03:25]} 16. Bxf4 {[%emt 0:00:25]} g5 {[%emt 0:00:21]} 17. Bh2 {[%emt 0:00:38]} O-O {[%emt 0:02:00]} 18. Ne3 {[%emt 0:00:29]} Ne7 19. Rf2 {[%emt 0:02:55]} Be6 {[%emt 0:01:19]} 20. Nf5 {[%emt 0:02:10]} Be5 {[%emt 0:00:54]} 21. d4 {[%emt 0:03:37]} Bxh2+ {[%emt 0:01:22]} 22. Kxh2 {[%emt 0:00:21]} Ng6 {[%emt 0:00:35]} 23. Qe3 {[%emt 0:01:31]} cxd4 {[%emt 0:01:33]} 24. Nxd4 {[%emt 0:03:10]} Bd7 {[%emt 0:01:01]} 25. Raf1 {[%emt 0:00:42]} Ne5 {[%emt 0:00:25]} 26. Rf6 {[%emt 0:00:45]} Ng6 {[%emt 0:01:51]} 27. Qxg5 {[%emt 0:00:08]} Qe8 28. Nf5 {[%emt 0:01:25]} Qe5+ {[%emt 0:00:51]} 29. Kh1 {[%emt 0:00:25]} Bc6 {[%emt 0:00:44]} 30. Ne7+ {[%emt 0:01:44]} Kg7 {[%emt 0:01:44]} 31. Rxg6+ {[%emt 0:00:34]} fxg6 {[%emt 0:00:31]} 32. Qxg6+ {[%emt 0:00:22]} Kh8 {[%emt 0:00:21]} 33. Qh6# {[%emt 0:00:21]} 1-0

[Event "Delancey UK Schools 2019 U18"]
[Site "Daventry"]
[Date "2019.09.24"]
[Round "3.2"]
[White "Willow, Jonah B"]
[Black "Grieve, Harry"]
[Result "1-0"]
[ECO "B47"]
[WhiteElo "2327"]
[BlackElo "2277"]
[Annotator "ChessBase"]
[PlyCount "99"]
[EventDate "2019.09.24"]
[EventCountry "GBR"]
[SourceTitle "playchess.com"]
[Source "ChessBase"]
[SourceQuality "1"]
[TimeControl "40/5400+30:1800+30"]

1. e4 {[%emt 1:10:11]} c5 {[%emt 1:10:11]} 2. Nf3 {[%emt 0:00:24]} e6 {[%emt 0:00:21]} 3. d4 {[%emt 0:00:24]} cxd4 {[%emt 0:00:21]} 4. Nxd4 {[%emt 0:00:21]} Nc6 {[%emt 0:00:21]} 5. Nc3 {[%emt 0:00:38]} Qc7 {[%emt 0:00:21]} 6. g3 {[%emt 0:00:50]} a6 {[%emt 0:00:29]} 7. Bg2 {[%emt 0:00:22]} Nf6 {[%emt 0:00:21]} 8. O-O {[%emt 0:00:23]} Nxd4 {[%emt 0:00:21]} 9. Qxd4 {[%emt 0:00:21]} Bc5 {[%emt 0:00:22]} 10. Bf4 {[%emt 0:00:21]} d6 {[%emt 0:00:22]} 11. Qd2 {[%emt 0:00:22]} h6 {[%emt 0:00:24]} 12. Rad1 {[%emt 0:00:22]} e5 {[%emt 0:00:22]} 13. Be3 {[%emt 0:00:22]} Bb4 {[%emt 0:00:21]} 14. Nb5 {[%emt 0:02:45]} axb5 {[%emt 0:00:22]} 15. Qxb4 {[%emt 0:00:22]} Rxa2 {[%emt 0:00:26]} 16. Rxd6 {[%emt 0:03:37]} O-O {[%emt 0:00:22]} 17. Rfd1 {[%emt 0:01:23]} Qxc2 {[%emt 0:02:24]} 18. R6d2 {[%emt 0:02:12]} Qc4 {[%emt 0:01:58]} 19. Qe7 {[%emt 0:02:13]} Ra6 {[%emt 0:13:41]} 20. Rd8 {[%emt 0:02:44]} Nh7 {[%emt 0:04:09]} 21. Bc5 {[%emt 0:00:36]} Rc6 {[%emt 0:01:39]} 22. Rxf8+ {[%emt 0:00:41]} Nxf8 {[%emt 0:00:22]} 23. Qxf8+ {[%emt 0:00:22]} Kh7 {[%emt 0:00:21]} 24. Be3 {[%emt 0:01:24]} Qe2 {[%emt 0:00:59]} 25. Rf1 {[%emt 0:01:16]} Qxb2 {[%emt 0:00:37]} 26. Qxf7 {[%emt 0:03:01]} b4 {[%emt 0:00:29]} 27. Bf3 {[%emt 0:01:19]} Bh3 {[%emt 0:00:47]} 28. Re1 {[%emt 0:01:27]} Rf6 {[%emt 0:00:32]} 29. Qh5 {[%emt 0:00:27]} Be6 {[%emt 0:00:26]} 30. Bg4 {[%emt 0:00:29]} Bxg4 {[%emt 0:00:34]} 31. Qxg4 {[%emt 0:00:22]} b3 {[%emt 0:00:24]} 32. Qe2 {[%emt 0:00:45]} Qc3 {[%emt 0:00:39]} 33. Rc1 {[%emt 0:00:55]} Qb4 {[%emt 0:00:21]} 34. Qc4 {[%emt 0:00:27]} Qa3 {[%emt 0:00:40]} 35. Rb1 {[%emt 0:00:30]} b2 {[%emt 0:00:30]} 36. Qc2 {[%emt 0:00:25]} Rc6 {[%emt 0:00:29]} 37. Qxb2 {[%emt 0:00:24]} Qd3 {[%emt 0:00:27]} 38. Qxb7 {[%emt 0:00:48]} Rc7 {[%emt 0:00:34]} 39. Qxc7 {[%emt 0:00:34]} Qxb1+ {[%emt 0:00:21]} 40. Qc1 {[%emt 0:00:21]} Qxe4 {[%emt 0:00:21]} 41. Qd1 {[%emt 0:30:30]} Kg6 {[%emt 0:30:26]} 42. Qe2 {[%emt 0:00:30]} h5 {[%emt 0:00:30]} 43. f3 {[%emt 0:00:34]} Qb1+ {[%emt 0:00:27]} 44. Kg2 {[%emt 0:00:23]} Kf5 {[%emt 0:00:37]} 45. Bf2 {[%emt 0:00:28]} g5 {[%emt 0:00:38]} 46. Qc4 {[%emt 0:00:27]} Qb7 {[%emt 0:00:36]} 47. Qd3+ {[%emt 0:00:56]} Kf6 {[%emt 0:00:30]} 48. Qe4 {[%emt 0:00:21]} Qd7 {[%emt 0:00:29]} 49. h3 {[%emt 0:00:28]} Qe6 {[%emt 0:00:28]} 50. Qh7 {[%emt 0:00:28]} 1-0

[Event "Delancey UK Schools 2019 U18"]
[Site "Daventry"]
[Date "2019.09.24"]
[Round "3.3"]
[White "Carroll, Thomas"]
[Black "Boswell, Jacob Connor"]
[Result "1/2-1/2"]
[ECO "D00"]
[WhiteElo "2036"]
[BlackElo "2000"]
[Annotator "NA"]
[PlyCount "80"]
[EventDate "2019.09.24"]
[EventCountry "GBR"]
[SourceTitle "playchess.com"]
[Source "ChessBase"]
[SourceQuality "1"]
[TimeControl "40/5400+30:1800+30"]

1. d4 {[%emt 1:10:13]} Nf6 {[%emt 1:10:11]} 2. Bg5 {[%emt 0:00:21]} d5 {[%emt 0:00:20]} 3. Nd2 {[%emt 0:00:21]} c5 {[%emt 0:02:07]} 4. e3 {[%emt 0:00:21]} Nc6 {[%emt 0:00:38]} 5. Ngf3 {[%emt 0:00:57]} Bf5 {[%emt 0:01:16]} 6. Be2 {[%emt 0:03:34]} cxd4 {[%emt 0:02:25]} 7. exd4 {[%emt 0:01:53]} Ne4 {[%emt 0:01:13]} 8. Be3 {[%emt 0:03:08]} g6 {[%emt 0:02:23]} 9. c3 {[%emt 0:02:32]} Nxd2 {[%emt 0:01:24]} 10. Qxd2 {[%emt 0:00:29]} Bg7 {[%emt 0:00:22]} 11. O-O {[%emt 0:00:56]} O-O {[%emt 0:00:21]} 12. Bh6 {[%emt 0:00:47]} Rb8 {[%emt 0:01:27]} 13. a4 {[%emt 0:01:24]} a6 {[%emt 0:00:53]} 14. Rfe1 {[%emt 0:01:43]} Na5 {[%emt 0:01:07]} 15. Bxg7 {[%emt 0:00:45]} Kxg7 {[%emt 0:00:22]} 16. Qf4 {[%emt 0:01:05]} b5 {[%emt 0:01:27]} 17. axb5 {[%emt 0:00:58]} axb5 {[%emt 0:00:48]} 18. b4 {[%emt 0:00:38]} Nc4 {[%emt 0:00:30]} 19. Bxc4 {[%emt 0:00:35]} dxc4 {[%emt 0:01:20]} 20. Qe5+ {[%emt 0:00:58]} Kg8 {[%emt 0:00:32]} 21. Qxe7 {[%emt 0:00:35]} Qxe7 {[%emt 0:03:03]} 22. Rxe7 {[%emt 0:00:03]} Ra8 {[%emt 0:00:21]} 23. Raa7 {[%emt 0:01:26]} Rxa7 {[%emt 0:01:30]} 24. Rxa7 {[%emt 0:00:22]} Re8 {[%emt 0:00:21]} 25. h4 {[%emt 0:00:48]} Re2 {[%emt 0:00:46]} 26. d5 {[%emt 0:03:21]} Be4 {[%emt 0:02:40]} 27. Nd4 {[%emt 0:01:32]} Re1+ {[%emt 0:00:25]} 28. Kh2 {[%emt 0:00:22]} Bxd5 {[%emt 0:00:21]} 29. Nxb5 {[%emt 0:00:41]} Re2 {[%emt 0:00:44]} 30. Kg3 {[%emt 0:00:30]} Rc2 {[%emt 0:00:57]} 31. Rc7 {[%emt 0:00:31]} Kg7 {[%emt 0:00:39]} 32. Rc5 {[%emt 0:00:41]} Be6 {[%emt 0:00:26]} 33. Re5 {[%emt 0:00:41]} Bd7 {[%emt 0:00:46]} 34. f3 {[%emt 0:01:25]} Kf6 {[%emt 0:01:05]} 35. Rd5 {[%emt 0:00:33]} Bxb5 {[%emt 0:00:21]} 36. Rxb5 {[%emt 0:00:21]} Rxc3 {[%emt 0:00:21]} 37. Rc5 {[%emt 0:00:27]} Rc2 {[%emt 0:00:27]} 38. b5 {[%emt 0:00:26]} Ke6 {[%emt 0:00:43]} 39. b6 {[%emt 0:00:28]} Rb2 {[%emt 0:00:23]} 40. Rxc4 {[%emt 0:00:42]} Rxb6 {[%emt 0:00:22]} 1/2-1/2

[Event "Delancey UK Schools 2019 U18"]
[Site "Daventry"]
[Date "2019.09.24"]
[Round "3.4"]
[White "Rathbone-Jones, Ifan"]
[Black "Munshi, Aditya"]
[Result "0-1"]
[ECO "D02"]
[WhiteElo "1879"]
[BlackElo "2183"]
[Annotator "ChessBase"]
[PlyCount "70"]
[EventDate "2019.09.24"]
[EventCountry "GBR"]
[SourceTitle "playchess.com"]
[Source "ChessBase"]
[SourceQuality "1"]
[TimeControl "40/5400+30:1800+30"]

1. d4 {[%emt 0:29:00]} Nf6 {[%emt 0:01:20]} 2. Bf4 {[%emt 0:00:03]} d5 {[%emt 0:00:14]} 3. Nf3 {[%emt 0:00:03]} e6 {[%emt 0:00:14]} 4. e3 {[%emt 0:00:11]} c5 {[%emt 0:00:11]} 5. Nbd2 {[%emt 0:00:12]} Nc6 {[%emt 0:00:05]} 6. c3 {[%emt 0:00:04]} cxd4 {[%emt 1:11:54]} 7. exd4 {[%emt 0:43:27]} Nh5 {[%emt 0:00:21]} 8. Bg3 {[%emt 0:00:22]} g6 {[%emt 0:01:23]} 9. Bh4 {[%emt 0:01:48]} f6 {[%emt 0:04:03]} 10. Nb3 {[%emt 0:01:22]} Be7 {[%emt 0:01:35]} 11. Qd2 {[%emt 0:01:58]} Ng7 {[%emt 0:01:20]} 12. Bd3 {[%emt 0:00:35]} e5 {[%emt 0:00:33]} 13. dxe5 {[%emt 0:01:10]} fxe5 {[%emt 0:00:05]} 14. Bxe7 {[%emt 0:00:07]} Qxe7 {[%emt 0:02:07]} 15. Bb5 {[%emt 0:02:19]} Qd6 {[%emt 0:03:33]} 16. O-O-O {[%emt 0:00:56]} Be6 {[%emt 0:00:56]} 17. Rhe1 {[%emt 0:00:21]} O-O {[%emt 0:01:38]} 18. Bxc6 {[%emt 0:00:50]} bxc6 {[%emt 0:00:03]} 19. Nxe5 {[%emt 0:00:12]} c5 {[%emt 0:00:07]} 20. f4 {[%emt 0:03:24]} a5 {[%emt 0:01:11]} 21. Qf2 {[%emt 0:01:07]} Rac8 {[%emt 0:01:24]} 22. Kb1 {[%emt 0:01:28]} a4 {[%emt 0:00:47]} 23. Nd2 {[%emt 0:01:24]} Qb6 {[%emt 0:00:07]} 24. g3 {[%emt 0:01:42]} Rc7 {[%emt 0:03:58]} 25. Ndf3 {[%emt 0:03:11]} Rb8 {[%emt 0:00:51]} 26. Ng5 {[%emt 0:01:15]} Bf5+ {[%emt 0:00:32]} 27. Ka1 {[%emt 0:00:47]} d4 {[%emt 0:02:00]} 28. Qe2 {[%emt 0:02:33]} a3 {[%emt 0:00:36]} 29. b3 {[%emt 0:00:37]} dxc3 {[%emt 0:00:07]} 30. Qc4+ {[%emt 0:01:12]} Ne6 {[%emt 0:01:30]} 31. Nd7 {[%emt 0:01:06]} Rxd7 {[%emt 0:00:33]} 32. Rxd7 {[%emt 0:00:21]} c2 {[%emt 0:00:29]} 33. Re7 {[%emt 0:00:53]} Qd6 {[%emt 0:00:29]} 34. Rc1 {[%emt 0:00:42]} Qd1 {[%emt 0:00:30]} 35. Qf1 {[%emt 0:00:21]} Qd4# {[%emt 0:00:23]} 0-1

[Event "Delancey UK Schools 2019 U18"]
[Site "Daventry"]
[Date "2019.09.24"]
[Round "3.5"]
[White "Stoyanov, Viktor"]
[Black "Pollack, Oscar"]
[Result "1/2-1/2"]
[ECO "A57"]
[WhiteElo "2272"]
[BlackElo "2112"]
[Annotator "ChessBase"]
[PlyCount "104"]
[EventDate "2019.09.24"]
[EventCountry "GBR"]
[SourceTitle "playchess.com"]
[Source "ChessBase"]
[SourceQuality "1"]
[TimeControl "40/5400+30:1800+30"]

1. d4 {[%emt 1:10:14]} Nf6 {[%emt 1:10:10]} 2. Nf3 {[%emt 0:00:22]} c5 {[%emt 0:00:22]} 3. d5 {[%emt 0:01:04]} b5 {[%emt 0:00:21]} 4. c4 {[%emt 0:00:24]} Bb7 {[%emt 0:00:32]} 5. Qc2 {[%emt 0:00:25]} d6 {[%emt 0:00:39]} 6. e4 {[%emt 0:00:25]} b4 {[%emt 0:00:28]} 7. a3 {[%emt 0:00:34]} Nbd7 {[%emt 0:01:11]} 8. Bd3 {[%emt 0:00:33]} e5 {[%emt 0:00:57]} 9. O-O {[%emt 0:04:29]} a5 {[%emt 0:00:54]} 10. Bg5 {[%emt 0:01:11]} Be7 {[%emt 0:00:42]} 11. Bxf6 {[%emt 0:01:08]} Nxf6 {[%emt 0:00:35]} 12. Nbd2 {[%emt 0:00:42]} O-O {[%emt 0:00:28]} 13. axb4 {[%emt 0:00:37]} axb4 {[%emt 0:00:22]} 14. Nb3 {[%emt 0:00:22]} Qc7 {[%emt 0:01:51]} 15. Rfc1 {[%emt 0:00:40]} Rxa1 {[%emt 0:02:27]} 16. Rxa1 {[%emt 0:00:21]} Ra8 {[%emt 0:00:28]} 17. Qb1 {[%emt 0:00:23]} Qd8 {[%emt 0:01:26]} 18. Ra2 {[%emt 0:00:27]} Nd7 {[%emt 0:01:28]} 19. Qa1 {[%emt 0:00:26]} Rxa2 {[%emt 0:00:27]} 20. Qxa2 {[%emt 0:00:21]} Qa8 {[%emt 0:00:40]} 21. Qxa8+ {[%emt 0:00:56]} Bxa8 {[%emt 0:00:20]} 22. Kf1 {[%emt 0:00:23]} Nb6 {[%emt 0:00:39]} 23. Nbd2 {[%emt 0:00:34]} b3 {[%emt 0:01:04]} 24. Nxb3 {[%emt 0:00:24]} Na4 {[%emt 0:00:22]} 25. Ke1 {[%emt 0:00:37]} Nxb2 {[%emt 0:00:31]} 26. Be2 {[%emt 0:00:21]} Bb7 {[%emt 0:00:55]} 27. Kd2 {[%emt 0:00:29]} Bd8 {[%emt 0:00:48]} 28. Kc2 {[%emt 0:00:30]} Na4 {[%emt 0:00:45]} 29. Nc1 {[%emt 0:00:33]} Nb6 {[%emt 0:00:43]} 30. Kb3 {[%emt 0:00:33]} g6 {[%emt 0:00:53]} 31. Na2 {[%emt 0:00:26]} f5 {[%emt 0:01:13]} 32. Bd3 {[%emt 0:01:15]} fxe4 {[%emt 0:01:26]} 33. Bxe4 {[%emt 0:00:22]} Ba6 {[%emt 0:00:22]} 34. Bd3 {[%emt 0:01:37]} Nxd5 {[%emt 0:00:53]} 35. Bxg6 {[%emt 0:00:59]} Nf4 {[%emt 0:02:26]} 36. Be4 {[%emt 0:00:25]} h5 {[%emt 0:01:40]} 37. Nc3 {[%emt 0:00:37]} Kf7 {[%emt 0:01:15]} 38. g3 {[%emt 0:00:22]} Nh3 {[%emt 0:00:37]} 39. Bd5+ {[%emt 0:00:23]} Ke7 {[%emt 0:00:35]} 40. Ne4 {[%emt 0:00:25]} Bc8 {[%emt 0:00:27]} 41. Kc2 {[%emt 0:30:42]} Bf5 {[%emt 0:30:45]} 42. Kd2 {[%emt 0:00:49]} Bxe4 {[%emt 0:01:18]} 43. Bxe4 {[%emt 0:00:21]} Nxf2 {[%emt 0:00:22]} 44. Bg6 {[%emt 0:00:35]} e4 {[%emt 0:01:08]} 45. Ke3 {[%emt 0:00:52]} exf3 {[%emt 0:00:38]} 46. Kxf2 {[%emt 0:00:21]} h4 {[%emt 0:00:36]} 47. g4 {[%emt 0:00:27]} Kf6 {[%emt 0:00:29]} 48. Be4 {[%emt 0:00:24]} Ke5 {[%emt 0:00:30]} 49. Kxf3 {[%emt 0:00:24]} Bg5 {[%emt 0:00:22]} 50. h3 {[%emt 0:00:21]} Bc1 {[%emt 0:00:23]} 51. Bd5 {[%emt 0:00:33]} Bg5 {[%emt 0:00:25]} 52. Bf7 {[%emt 0:00:32]} Bc1 {[%emt 0:00:25]} 1/2-1/2

[Event "Delancey UK Schools 2019 U18"]
[Site "Daventry"]
[Date "2019.09.24"]
[Round "3.6"]
[White "Guha, Chirag"]
[Black "Golding, Alex"]
[Result "0-1"]
[ECO "A62"]
[WhiteElo "1769"]
[BlackElo "2306"]
[Annotator "ChessBase"]
[PlyCount "66"]
[EventDate "2019.09.24"]
[EventCountry "GBR"]
[SourceTitle "playchess.com"]
[Source "ChessBase"]
[SourceQuality "1"]
[TimeControl "40/5400+30:1800+30"]

1. d4 {[%emt 1:10:12]} Nf6 {[%emt 1:10:11]} 2. c4 {[%emt 0:00:24]} g6 {[%emt 0:00:21]} 3. g3 {[%emt 0:00:25]} Bg7 {[%emt 0:00:23]} 4. Bg2 {[%emt 0:00:29]} O-O {[%emt 0:00:22]} 5. Nf3 {[%emt 0:00:22]} c5 {[%emt 0:00:35]} 6. d5 {[%emt 0:00:30]} d6 {[%emt 0:00:22]} 7. Nc3 {[%emt 0:00:44]} e6 {[%emt 0:00:29]} 8. O-O {[%emt 0:00:51]} exd5 {[%emt 0:00:23]} 9. cxd5 {[%emt 0:00:22]} Re8 {[%emt 0:00:27]} 10. Nd2 {[%emt 0:00:41]} Nbd7 {[%emt 0:00:54]} 11. e4 {[%emt 0:01:19]} Ne5 {[%emt 0:00:54]} 12. f4 {[%emt 0:01:33]} Nd3 {[%emt 0:00:36]} 13. Nc4 {[%emt 0:01:00]} Nxc1 {[%emt 0:00:28]} 14. Rxc1 {[%emt 0:00:58]} Ng4 {[%emt 0:04:25]} 15. Qf3 {[%emt 0:08:19]} f5 {[%emt 0:01:22]} 16. h3 {[%emt 0:00:33]} Bd4+ {[%emt 0:01:51]} 17. Kh1 {[%emt 0:00:36]} Nf6 {[%emt 0:00:43]} 18. exf5 {[%emt 0:01:53]} Bxf5 {[%emt 0:00:38]} 19. g4 {[%emt 0:00:26]} Be4 {[%emt 0:00:32]} 20. Nxe4 {[%emt 0:03:16]} Nxe4 {[%emt 0:00:21]} 21. f5 {[%emt 0:00:23]} gxf5 {[%emt 0:00:39]} 22. gxf5 {[%emt 0:02:05]} Qh4 {[%emt 0:00:26]} 23. Kh2 {[%emt 0:01:07]} b5 {[%emt 0:00:37]} 24. f6 {[%emt 0:01:14]} Bxf6 {[%emt 0:00:46]} 25. Qf5 {[%emt 0:01:35]} bxc4 {[%emt 0:01:44]} 26. Bxe4 {[%emt 0:01:17]} Rxe4 {[%emt 0:00:25]} 27. Rg1+ {[%emt 0:00:44]} Kh8 {[%emt 0:00:24]} 28. Rcf1 {[%emt 0:00:26]} Be5+ {[%emt 0:00:32]} 29. Kh1 {[%emt 0:00:26]} Rf4 {[%emt 0:00:23]} 30. Rxf4 {[%emt 0:00:26]} Qxf4 {[%emt 0:00:23]} 31. Qxf4 {[%emt 0:00:27]} Bxf4 {[%emt 0:00:22]} 32. Rf1 {[%emt 0:00:25]} Be5 {[%emt 0:00:22]} 33. Rf7 {[%emt 0:00:31]} c3 {[%emt 0:00:26]} 0-1

[Event "Delancey UK Schools 2019 U18"]
[Site "Daventry"]
[Date "2019.09.24"]
[Round "3.7"]
[White "Stubbs, Oliver"]
[Black "Modi, Kishan Jagdish"]
[Result "1/2-1/2"]
[ECO "D00"]
[WhiteElo "1835"]
[BlackElo "2004"]
[Annotator "NA"]
[PlyCount "74"]
[EventDate "2019.09.24"]
[EventCountry "GBR"]
[SourceTitle "playchess.com"]
[Source "ChessBase"]
[SourceQuality "1"]
[TimeControl "40/5400+30:1800+30"]

1. d4 {[%emt 1:10:11]} d5 {[%emt 1:10:13]} 2. Bf4 {[%emt 0:00:21]} Nf6 {[%emt 0:00:21]} 3. e3 {[%emt 0:00:21]} c5 {[%emt 0:00:21]} 4. c3 {[%emt 0:00:21]} Nc6 {[%emt 0:00:22]} 5. Nd2 {[%emt 0:00:21]} cxd4 {[%emt 0:00:22]} 6. exd4 {[%emt 0:00:21]} Bf5 {[%emt 0:00:31]} 7. Qb3 {[%emt 0:00:33]} Qb6 {[%emt 0:00:23]} 8. Qxb6 {[%emt 0:00:31]} axb6 {[%emt 0:00:22]} 9. Ngf3 {[%emt 0:00:53]} e6 {[%emt 0:00:42]} 10. Nh4 {[%emt 0:00:52]} Bg4 {[%emt 0:00:43]} 11. h3 {[%emt 0:01:13]} Bh5 {[%emt 0:00:21]} 12. Bd3 {[%emt 0:00:22]} Kd7 {[%emt 0:00:29]} 13. a3 {[%emt 0:01:05]} Bd6 {[%emt 0:00:26]} 14. Bxd6 {[%emt 0:00:23]} Kxd6 {[%emt 0:00:21]} 15. f4 {[%emt 0:00:40]} Bg6 {[%emt 0:00:29]} 16. Nxg6 {[%emt 0:00:32]} hxg6 {[%emt 0:00:21]} 17. Kf2 {[%emt 0:00:39]} Nd7 {[%emt 0:01:25]} 18. Nf3 {[%emt 0:00:38]} f5 {[%emt 0:02:02]} 19. Ne5 {[%emt 0:01:25]} Ndxe5 {[%emt 0:00:29]} 20. fxe5+ {[%emt 0:00:31]} Kd7 {[%emt 0:00:37]} 21. h4 {[%emt 0:01:52]} Rh6 {[%emt 0:00:58]} 22. g3 {[%emt 0:00:33]} Rah8 {[%emt 0:00:22]} 23. Kg2 {[%emt 0:01:23]} Ke7 {[%emt 0:01:19]} 24. Raf1 {[%emt 0:00:24]} Kf7 {[%emt 0:02:20]} 25. Be2 {[%emt 0:02:14]} Ne7 {[%emt 0:00:39]} 26. Bf3 {[%emt 0:01:20]} Nc6 {[%emt 0:00:56]} 27. Be2 {[%emt 0:02:30]} g5 {[%emt 0:03:12]} 28. hxg5 {[%emt 0:00:32]} Rxh1 {[%emt 0:00:22]} 29. Rxh1 {[%emt 0:00:21]} Rxh1 {[%emt 0:00:23]} 30. Kxh1 {[%emt 0:00:21]} Kg6 {[%emt 0:00:22]} 31. Kg2 {[%emt 0:01:13]} Kxg5 {[%emt 0:00:22]} 32. Kf3 {[%emt 0:00:23]} Kh6 {[%emt 0:00:31]} 33. Bb5 {[%emt 0:00:43]} Nd8 {[%emt 0:00:21]} 34. Bd7 {[%emt 0:00:39]} g5 {[%emt 0:02:47]} 35. b3 {[%emt 0:00:42]} Kg6 {[%emt 0:00:33]} 36. Ke3 {[%emt 0:01:08]} Kf7 {[%emt 0:00:52]} 37. Bb5 {[%emt 0:00:31]} Ke7 {[%emt 0:00:58]} 1/2-1/2

[Event "Delancey UK Schools 2019 U18"]
[Site "Daventry"]
[Date "2019.09.24"]
[Round "3.8"]
[White "Modi, Shyam Jagdish"]
[Black "Somton, Anita"]
[Result "1-0"]
[ECO "E07"]
[WhiteElo "2142"]
[BlackElo "1831"]
[Annotator "ChessBase"]
[PlyCount "85"]
[EventDate "2019.09.24"]
[EventCountry "GBR"]
[SourceTitle "playchess.com"]
[Source "ChessBase"]
[SourceQuality "1"]
[TimeControl "40/5400+30:1800+30"]

1. d4 {[%emt 1:10:11]} d5 {[%emt 1:10:13]} 2. c4 {[%emt 0:00:22]} e6 {[%emt 0:00:22]} 3. Nf3 {[%emt 0:00:23]} Nf6 {[%emt 0:00:23]} 4. g3 {[%emt 0:00:21]} Be7 {[%emt 0:00:31]} 5. Bg2 {[%emt 0:00:22]} O-O {[%emt 0:00:25]} 6. O-O {[%emt 0:00:23]} Nbd7 {[%emt 0:00:32]} 7. Nbd2 {[%emt 0:00:35]} b6 {[%emt 0:01:01]} 8. Qc2 {[%emt 0:00:44]} Bb7 {[%emt 0:00:45]} 9. b3 {[%emt 0:01:51]} Rc8 {[%emt 0:01:34]} 10. Ne5 {[%emt 0:01:19]} c5 {[%emt 0:02:00]} 11. Nxd7 {[%emt 0:00:27]} Qxd7 {[%emt 0:00:33]} 12. dxc5 {[%emt 0:00:58]} Bxc5 {[%emt 0:01:23]} 13. Qd1 {[%emt 0:02:01]} Bd4 {[%emt 0:02:31]} 14. Rb1 {[%emt 0:03:03]} dxc4 {[%emt 0:02:10]} 15. Bxb7 {[%emt 0:01:00]} Qxb7 {[%emt 0:00:23]} 16. Nxc4 {[%emt 0:00:42]} Rfd8 {[%emt 0:00:35]} 17. e3 {[%emt 0:03:09]} Bc5 {[%emt 0:02:06]} 18. Qe2 {[%emt 0:01:38]} Nd5 {[%emt 0:02:25]} 19. Bb2 {[%emt 0:00:39]} Bb4 {[%emt 0:01:27]} 20. e4 {[%emt 0:01:25]} Nc3 {[%emt 0:01:27]} 21. Bxc3 {[%emt 0:00:23]} Bxc3 {[%emt 0:00:21]} 22. e5 {[%emt 0:00:51]} Bb4 {[%emt 0:01:03]} 23. Rfd1 {[%emt 0:00:41]} b5 {[%emt 0:01:15]} 24. Ne3 {[%emt 0:00:50]} a6 {[%emt 0:01:01]} 25. Ng4 {[%emt 0:02:15]} Be7 {[%emt 0:01:07]} 26. h4 {[%emt 0:00:31]} a5 {[%emt 0:01:26]} 27. h5 {[%emt 0:01:15]} h6 {[%emt 0:00:35]} 28. Nh2 {[%emt 0:00:43]} b4 {[%emt 0:00:40]} 29. Nf3 {[%emt 0:01:08]} Rc7 {[%emt 0:01:00]} 30. Rxd8+ {[%emt 0:01:03]} Bxd8 {[%emt 0:00:21]} 31. Nd2 {[%emt 0:00:24]} Rc2 {[%emt 0:00:40]} 32. Qd3 {[%emt 0:00:21]} Qc7 {[%emt 0:00:31]} 33. Nc4 {[%emt 0:01:15]} Rxa2 {[%emt 0:00:29]} 34. Rd1 {[%emt 0:01:07]} Be7 {[%emt 0:00:34]} 35. Nd6 {[%emt 0:01:27]} Qc2 {[%emt 0:00:44]} 36. Qf3 {[%emt 0:00:45]} Bxd6 {[%emt 0:01:11]} 37. exd6 {[%emt 0:00:22]} Qc8 {[%emt 0:00:34]} 38. d7 {[%emt 0:00:21]} Qd8 {[%emt 0:00:22]} 39. Qc6 {[%emt 0:00:35]} Kf8 {[%emt 0:00:35]} 40. Qd6+ {[%emt 0:00:21]} Kg8 {[%emt 0:00:23]} 41. Rc1 {[%emt 0:30:21]} Kh7 {[%emt 0:30:53]} 42. Rc8 {[%emt 0:01:00]} Qf6 {[%emt 0:00:23]} 43. Qf4 {[%emt 0:01:08]} 1-0

[Event "Delancey UK Schools 2019 U18"]
[Site "Daventry"]
[Date "2019.09.24"]
[Round "3.9"]
[White "Jaufarally, Nadia"]
[Black "Ye, Kevin"]
[Result "0-1"]
[ECO "C54"]
[WhiteElo "1991"]
[BlackElo "1758"]
[Annotator "NA"]
[PlyCount "42"]
[EventDate "2019.09.24"]
[EventCountry "GBR"]
[SourceTitle "playchess.com"]
[Source "ChessBase"]
[SourceQuality "1"]
[TimeControl "40/5400+30:1800+30"]

1. e4 {[%emt 1:10:11]} e5 {[%emt 1:10:13]} 2. Nf3 {[%emt 0:00:22]} Nc6 {[%emt 0:00:21]} 3. Bc4 {[%emt 0:00:21]} Nf6 {[%emt 0:00:22]} 4. d3 {[%emt 0:00:29]} Bc5 {[%emt 0:00:21]} 5. c3 {[%emt 0:00:20]} d6 {[%emt 0:00:37]} 6. h3 {[%emt 0:00:54]} a6 {[%emt 0:00:26]} 7. Bb3 {[%emt 0:00:24]} Ba7 {[%emt 0:00:23]} 8. O-O {[%emt 0:00:24]} Be6 {[%emt 0:00:28]} 9. Re1 {[%emt 0:01:13]} h6 {[%emt 0:00:29]} 10. Nbd2 {[%emt 0:00:30]} Qd7 {[%emt 0:00:31]} 11. Nf1 {[%emt 0:00:58]} g5 {[%emt 0:01:54]} 12. N3h2 {[%emt 0:03:48]} O-O-O {[%emt 0:02:46]} 13. Be3 {[%emt 0:03:36]} Rdg8 {[%emt 0:02:03]} 14. Bxa7 {[%emt 0:01:56]} Nxa7 {[%emt 0:00:22]} 15. Qf3 {[%emt 0:03:32]} Rg6 {[%emt 0:02:27]} 16. Ne3 {[%emt 0:01:13]} h5 {[%emt 0:00:46]} 17. Nf5 {[%emt 0:04:03]} g4 {[%emt 0:00:48]} 18. Qe3 {[%emt 0:02:11]} Nc6 {[%emt 0:01:50]} 19. Bxe6 {[%emt 0:00:43]} Qxe6 {[%emt 0:00:55]} 20. h4 {[%emt 0:01:22]} Rhg8 {[%emt 0:04:54]} 21. g3 {[%emt 0:00:41]} d5 {[%emt 0:01:46]} 0-1